[Event "*** Titled Tuesday 3|2 Blitz"]
[Site "Chess.com"]
[Date "2016.07.05"]
[Round "1"]
[White "ajkom197"]
[Black "theprosecution1"]
[Result "1/2-1/2"]
[WhiteElo "2244"]
[BlackElo "2507"]
[TimeControl "180+2"]
[EndTime "11:08:47 PDT"]
[Termination "Game drawn by repetition"]

1. d4 {[%clk 0:03:01.9]} 1... Nf6 {[%clk 0:03:00.8]} 2. Nf3 {[%clk 0:03:03]}
2... e6 {[%clk 0:03:01.7]} 3. c4 {[%clk 0:03:04.2]} 3... b6 {[%clk 0:03:00.2]}
4. g3 {[%clk 0:03:04.9]} 4... Ba6 {[%clk 0:03:01.1]} 5. b3 {[%clk 0:03:05.5]}
5... Bb4+ {[%clk 0:03:01.8]} 6. Bd2 {[%clk 0:03:06.4]} 6... Be7 {[%clk
0:03:03.4]} 7. Bg2 {[%clk 0:03:07.5]} 7... c6 {[%clk 0:03:04.5]} 8. O-O {[%clk
0:03:08.7]} 8... d5 {[%clk 0:03:05.1]} 9. Ne5 {[%clk 0:03:04.3]} 9... Nfd7
{[%clk 0:03:06.3]} 10. Nxd7 {[%clk 0:03:03.2]} 10... Nxd7 {[%clk 0:03:08.2]} 11.
cxd5 {[%clk 0:03:03.1]} 11... cxd5 {[%clk 0:03:10.1]} 12. Re1 {[%clk 0:03:04]}
12... Nf6 {[%clk 0:03:09.7]} 13. Nc3 {[%clk 0:03:02.2]} 13... O-O {[%clk
0:03:10.3]} 14. Rc1 {[%clk 0:03:02.5]} 14... Rc8 {[%clk 0:03:09.2]} 15. e4
{[%clk 0:03:03.1]} 15... Ba3 {[%clk 0:03:09]} 16. e5 {[%clk 0:02:44.5]} 16...
Nd7 {[%clk 0:03:03.5]} 17. Qg4 {[%clk 0:02:17.3]} 17... Bxc1 {[%clk 0:02:59.5]}
18. Rxc1 {[%clk 0:02:19.2]} 18... Bd3 {[%clk 0:02:51.1]} 19. h4 {[%clk
0:02:17.4]} 19... Bf5 {[%clk 0:02:51.4]} 20. Qe2 {[%clk 0:02:14.5]} 20... h6
{[%clk 0:02:44.6]} 21. g4 {[%clk 0:02:15.2]} 21... Bg6 {[%clk 0:02:28]} 22. h5
{[%clk 0:02:13.1]} 22... Bh7 {[%clk 0:02:28]} 23. f4 {[%clk 0:02:14.5]} 23... f6
{[%clk 0:02:24.5]} 24. Nb5 {[%clk 0:02:08.5]} 24... Rxc1+ {[%clk 0:02:24.2]} 25.
Bxc1 {[%clk 0:02:10.4]} 25... fxe5 {[%clk 0:02:26]} 26. dxe5 {[%clk 0:02:11]}
26... Nc5 {[%clk 0:02:17.4]} 27. Nd6 {[%clk 0:02:05.6]} 27... Qh4 {[%clk
0:02:07.9]} 28. Be3 {[%clk 0:02:00.2]} 28... Nd3 {[%clk 0:01:55.1]} 29. f5
{[%clk 0:01:52.6]} 29... Ne1 {[%clk 0:01:14.8]} 30. Bf2 {[%clk 0:01:45.1]} 30...
Nxg2 {[%clk 0:01:14]} 31. Bxh4 {[%clk 0:01:42.3]} 31... Nxh4 {[%clk 0:01:15.9]}
32. fxe6 {[%clk 0:01:37.8]} 32... Nf3+ {[%clk 0:00:55.8]} 33. Kg2 {[%clk
0:01:35.4]} 33... Nd4 {[%clk 0:00:56.3]} 34. Qe3 {[%clk 0:01:31]} 34... Nxe6
{[%clk 0:00:56.7]} 35. Qd2 {[%clk 0:01:15.9]} 35... Kh8 {[%clk 0:00:57.5]} 36.
Kg3 {[%clk 0:01:13.8]} 36... d4 {[%clk 0:00:58.5]} 37. a4 {[%clk 0:00:47.8]}
37... d3 {[%clk 0:00:55.3]} 38. Nf5 {[%clk 0:00:44.8]} 38... Bxf5 {[%clk
0:00:54.8]} 39. gxf5 {[%clk 0:00:46.7]} 39... Rxf5 {[%clk 0:00:56.4]} 40. Qxd3
{[%clk 0:00:48]} 40... Rxe5 {[%clk 0:00:55.7]} 41. Qd7 {[%clk 0:00:42.2]} 41...
Re3+ {[%clk 0:00:25.9]} 42. Kf2 {[%clk 0:00:39.5]} 42... Re5 {[%clk 0:00:25.5]}
43. Qe8+ {[%clk 0:00:35.7]} 43... Kh7 {[%clk 0:00:26.3]} 44. Qg6+ {[%clk
0:00:33.6]} 44... Kg8 {[%clk 0:00:26.5]} 45. Qe8+ {[%clk 0:00:28.8]} 45... Kh7
{[%clk 0:00:27.4]} 46. Qg6+ {[%clk 0:00:29.6]} 46... Kg8 {[%clk 0:00:28.5]} 47.
Qe8+ {[%clk 0:00:26.2]} 47... Kh7 {[%clk 0:00:28.7]} 1/2-1/2

[Event "*** Titled Tuesday 3|2 Blitz"]
[Site "Chess.com"]
[Date "2016.07.05"]
[Round "1"]
[White "Dlugy"]
[Black "oggy1984"]
[Result "1-0"]
[WhiteElo "2610"]
[BlackElo "2308"]
[TimeControl "180+2"]
[EndTime "11:08:50 PDT"]
[Termination "Dlugy won on time"]

1. d4 {[%clk 0:03:01.9]} 1... Nf6 {[%clk 0:02:44.8]} 2. Bf4 {[%clk 0:03:03.3]}
2... d5 {[%clk 0:02:45.1]} 3. e3 {[%clk 0:03:03.6]} 3... c5 {[%clk 0:02:46.1]}
4. dxc5 {[%clk 0:03:03.9]} 4... Nc6 {[%clk 0:02:44.3]} 5. Bb5 {[%clk 0:03:04]}
5... Bg4 {[%clk 0:02:08.9]} 6. Nf3 {[%clk 0:02:45.4]} 6... Qa5+ {[%clk 0:01:39]}
7. Nc3 {[%clk 0:02:45.6]} 7... e6 {[%clk 0:01:39.4]} 8. O-O {[%clk 0:02:27.9]}
8... Ne4 {[%clk 0:01:34.5]} 9. Bxc6+ {[%clk 0:01:55.6]} 9... bxc6 {[%clk
0:01:33]} 10. Nxe4 {[%clk 0:01:54.5]} 10... dxe4 {[%clk 0:01:32.3]} 11. Qd2
{[%clk 0:01:49.9]} 11... Qxd2 {[%clk 0:01:19.4]} 12. Nxd2 {[%clk 0:01:50.6]}
12... Bxc5 {[%clk 0:01:10.9]} 13. Nxe4 {[%clk 0:01:50.7]} 13... Be7 {[%clk
0:01:11.4]} 14. Nd6+ {[%clk 0:01:43]} 14... Bxd6 {[%clk 0:01:11.1]} 15. Bxd6
{[%clk 0:01:44.6]} 15... O-O-O {[%clk 0:01:10.8]} 16. Bc5 {[%clk 0:01:44.4]}
16... Kb7 {[%clk 0:01:06.5]} 17. f3 {[%clk 0:01:45.2]} 17... Bh5 {[%clk
0:01:04.7]} 18. Rfd1 {[%clk 0:01:44.4]} 18... Rd5 {[%clk 0:01:05]} 19. Rxd5
{[%clk 0:01:30.7]} 19... cxd5 {[%clk 0:01:05.2]} 20. c3 {[%clk 0:01:29.6]} 20...
Rc8 {[%clk 0:01:00.9]} 21. Bd4 {[%clk 0:01:30.3]} 21... f6 {[%clk 0:01:00.5]}
22. f4 {[%clk 0:01:27.8]} 22... Bg6 {[%clk 0:01:00.7]} 23. Kf2 {[%clk
0:01:28.7]} 23... Be4 {[%clk 0:01:01.2]} 24. g4 {[%clk 0:01:29.4]} 24... a6
{[%clk 0:01:01]} 25. h4 {[%clk 0:01:30.2]} 25... Re8 {[%clk 0:00:59.7]} 26. Kg3
{[%clk 0:01:19]} 26... Kc6 {[%clk 0:00:57.2]} 27. b4 {[%clk 0:01:20]} 27... e5
{[%clk 0:00:55.9]} 28. Bc5 {[%clk 0:01:21.2]} 28... Kb5 {[%clk 0:00:54.6]} 29.
a4+ {[%clk 0:01:21.8]} 29... Kc4 {[%clk 0:00:55.4]} 30. Ra3 {[%clk 0:01:13.2]}
30... Bc2 {[%clk 0:00:38.5]} 31. g5 {[%clk 0:01:11.1]} 31... h6 {[%clk
0:00:36.3]} 32. gxh6 {[%clk 0:01:10.8]} 32... gxh6 {[%clk 0:00:36.5]} 33. h5
{[%clk 0:01:12.3]} 33... Rg8+ {[%clk 0:00:35.6]} 34. Kf2 {[%clk 0:01:11]} 34...
Be4 {[%clk 0:00:35.2]} 35. Be7 {[%clk 0:01:12.2]} 35... Rg2+ {[%clk 0:00:32.7]}
36. Kf1 {[%clk 0:01:13.6]} 36... exf4 {[%clk 0:00:27.7]} 37. exf4 {[%clk
0:01:14.7]} 37... f5 {[%clk 0:00:27.8]} 38. b5 {[%clk 0:01:14.8]} 38... axb5
{[%clk 0:00:24.4]} 39. a5 {[%clk 0:01:16.1]} 39... Rg8 {[%clk 0:00:10.6]} 40. a6
{[%clk 0:01:17.2]} 40... Ra8 {[%clk 0:00:05.2]} 41. a7 {[%clk 0:01:18.4]} 41...
d4 {[%clk 0:00:05.4]} 42. cxd4 {[%clk 0:01:18.9]} 42... Kxd4 {[%clk 0:00:06]}
43. Bf6+ {[%clk 0:01:13.6]} 43... Kc4 {[%clk 0:00:05.6]} 44. Bg7 {[%clk
0:01:15]} 44... b4 {[%clk 0:00:06.3]} 45. Ra1 {[%clk 0:01:14.3]} 45... Bd3+
{[%clk 0:00:07.2]} 46. Kf2 {[%clk 0:01:15.3]} 46... b3 {[%clk 0:00:07.1]} 47.
Ke3 {[%clk 0:01:15.9]} 47... Bc2 {[%clk 0:00:08]} 48. Kd2 {[%clk 0:01:15.9]}
48... Kb4 {[%clk 0:00:08.4]} 49. Kc1 {[%clk 0:01:15.8]} 49... Kc4 {[%clk
0:00:07.3]} 50. Kb2 {[%clk 0:01:17]} 50... Kd3 {[%clk 0:00:06.2]} 51. Bxh6
{[%clk 0:01:18.1]} 51... Ke4 {[%clk 0:00:04.4]} 52. Bg7 {[%clk 0:01:18.9]} 52...
Kxf4 {[%clk 0:00:04.9]} 53. h6 {[%clk 0:01:20.4]} 1-0

[Event "*** Titled Tuesday 3|2 Blitz"]
[Site "Chess.com"]
[Date "2016.07.05"]
[Round "1"]
[White "WanderingPuppet"]
[Black "Izoria123"]
[Result "0-1"]
[WhiteElo "2287"]
[BlackElo "2586"]
[TimeControl "180+2"]
[EndTime "11:08:52 PDT"]
[Termination "Izoria123 won by resignation"]

1. e4 {[%clk 0:03:01.3]} 1... c6 {[%clk 0:03:00.1]} 2. d4 {[%clk 0:02:53.4]}
2... d5 {[%clk 0:03:02]} 3. f3 {[%clk 0:02:54.8]} 3... Qb6 {[%clk 0:03:02.2]} 4.
a4 {[%clk 0:02:49.9]} 4... e6 {[%clk 0:02:59.8]} 5. a5 {[%clk 0:02:36.3]} 5...
Qd8 {[%clk 0:02:58.5]} 6. e5 {[%clk 0:02:21.3]} 6... c5 {[%clk 0:02:58.4]} 7. c3
{[%clk 0:02:22.4]} 7... Nc6 {[%clk 0:02:57.8]} 8. Bb5 {[%clk 0:01:54.3]} 8...
Bd7 {[%clk 0:02:49.7]} 9. Bxc6 {[%clk 0:01:32.2]} 9... Bxc6 {[%clk 0:02:40.8]}
10. Ne2 {[%clk 0:01:33.2]} 10... Bb5 {[%clk 0:02:40.9]} 11. O-O {[%clk
0:01:32.3]} 11... a6 {[%clk 0:02:36.5]} 12. Na3 {[%clk 0:01:32.4]} 12... Bxe2
{[%clk 0:02:36.6]} 13. Qxe2 {[%clk 0:01:32.8]} 13... cxd4 {[%clk 0:02:33.9]} 14.
cxd4 {[%clk 0:01:32.6]} 14... Qxa5 {[%clk 0:02:33]} 15. Nb5 {[%clk 0:01:28.5]}
15... Qxa1 {[%clk 0:01:50]} 16. Nc7+ {[%clk 0:01:29.2]} 16... Kd7 {[%clk
0:01:50.3]} 17. Nxa8 {[%clk 0:01:29.8]} 17... Qa5 {[%clk 0:01:51.9]} 18. Bg5
{[%clk 0:00:41.3]} 18... Ne7 {[%clk 0:01:24.1]} 19. Rc1 {[%clk 0:00:35.6]} 19...
Nc6 {[%clk 0:01:24.9]} 20. Qc2 {[%clk 0:00:30.5]} 20... Bb4 {[%clk 0:01:16.7]}
21. Be3 {[%clk 0:00:24.3]} 21... g6 {[%clk 0:01:09.9]} 22. Qf2 {[%clk 0:00:21]}
22... Be7 {[%clk 0:01:08.1]} 23. Qg3 {[%clk 0:00:15.4]} 23... Rxa8 {[%clk
0:01:07.6]} 24. Qf4 {[%clk 0:00:16.3]} 24... Rf8 {[%clk 0:00:59.9]} 25. Qh6
{[%clk 0:00:17.1]} 25... Qb4 {[%clk 0:00:55.9]} 26. Rd1 {[%clk 0:00:12.7]} 26...
Qb3 {[%clk 0:00:54.5]} 27. Rd2 {[%clk 0:00:11.9]} 27... f6 {[%clk 0:00:43.2]}
28. exf6 {[%clk 0:00:10.5]} 28... Rxf6 {[%clk 0:00:43.2]} 29. Kf2 {[%clk
0:00:12]} 29... Rf7 {[%clk 0:00:43]} 30. Qh3 {[%clk 0:00:08.7]} 30... Bf6 {[%clk
0:00:36.1]} 31. Qg3 {[%clk 0:00:09]} 31... Qb4 {[%clk 0:00:34.8]} 32. Qf4 {[%clk
0:00:07.3]} 32... Qd6 {[%clk 0:00:33.1]} 33. Qh6 {[%clk 0:00:06.1]} 33... Qf8
{[%clk 0:00:30]} 34. Qh3 {[%clk 0:00:05.7]} 34... Qg7 {[%clk 0:00:30.4]} 35. Qg3
{[%clk 0:00:06.8]} 35... g5 {[%clk 0:00:27.1]} 36. h3 {[%clk 0:00:06.4]} 36...
Qg6 {[%clk 0:00:27.4]} 37. Qg4 {[%clk 0:00:05.5]} 37... h5 {[%clk 0:00:27.6]}
38. Qg3 {[%clk 0:00:06.3]} 38... Qf5 {[%clk 0:00:29]} 39. Kg1 {[%clk 0:00:05.6]}
39... Be7 {[%clk 0:00:25.9]} 40. Qf2 {[%clk 0:00:06]} 40... g4 {[%clk
0:00:26.4]} 41. hxg4 {[%clk 0:00:07]} 41... hxg4 {[%clk 0:00:27.3]} 42. fxg4
{[%clk 0:00:08.9]} 42... Qxf2+ {[%clk 0:00:27]} 43. Bxf2 {[%clk 0:00:10.8]}
43... Rg7 {[%clk 0:00:26.9]} 44. Be3 {[%clk 0:00:10.3]} 44... Rxg4 {[%clk
0:00:27]} 45. Kf2 {[%clk 0:00:11]} 45... Bg5 {[%clk 0:00:27.5]} 46. Rd3 {[%clk
0:00:09.4]} 46... Bxe3+ {[%clk 0:00:27.9]} 0-1

[Event "*** Titled Tuesday 3|2 Blitz"]
[Site "Chess.com"]
[Date "2016.07.05"]
[Round "1"]
[White "proxy6"]
[Black "LaStreetCmaMaison"]
[Result "0-1"]
[WhiteElo "1927"]
[BlackElo "2418"]
[TimeControl "180+2"]
[EndTime "11:09:14 PDT"]
[Termination "LaStreetCmaMaison won by resignation"]

1. e4 {[%clk 0:02:53.1]} 1... c5 {[%clk 0:03:00.9]} 2. Nf3 {[%clk 0:02:53.7]}
2... d6 {[%clk 0:03:02.5]} 3. d4 {[%clk 0:02:55.2]} 3... cxd4 {[%clk 0:03:04.4]}
4. Nxd4 {[%clk 0:02:56.7]} 4... Nf6 {[%clk 0:03:06.1]} 5. Nc3 {[%clk 0:02:58.3]}
5... e5 {[%clk 0:03:07.4]} 6. Ndb5 {[%clk 0:02:54.3]} 6... a6 {[%clk 0:03:07.7]}
7. Na3 {[%clk 0:02:54.7]} 7... b5 {[%clk 0:03:09]} 8. b4 {[%clk 0:02:44.2]} 8...
Bb7 {[%clk 0:03:08.3]} 9. Bd3 {[%clk 0:02:43.3]} 9... d5 {[%clk 0:03:06.8]} 10.
exd5 {[%clk 0:02:38.2]} 10... Nxd5 {[%clk 0:03:07.5]} 11. Nxd5 {[%clk
0:02:35.1]} 11... Qxd5 {[%clk 0:03:09.4]} 12. f3 {[%clk 0:02:05.7]} 12... Bxb4+
{[%clk 0:03:08.9]} 13. Kf1 {[%clk 0:02:07.2]} 13... O-O {[%clk 0:03:06]} 14. Rb1
{[%clk 0:02:05.2]} 14... Be7 {[%clk 0:03:03.6]} 15. Bb2 {[%clk 0:01:56]} 15...
Nd7 {[%clk 0:02:59.8]} 16. Be4 {[%clk 0:01:54.5]} 16... Qxd1+ {[%clk 0:02:59.6]}
17. Rxd1 {[%clk 0:01:56.4]} 17... Bxe4 {[%clk 0:03:00.7]} 18. Rxd7 {[%clk
0:01:54.6]} 18... Bxa3 {[%clk 0:02:59.6]} 19. Bxa3 {[%clk 0:01:54.8]} 19... Bf5
{[%clk 0:03:01.2]} 20. Re7 {[%clk 0:01:46.6]} 20... Rfd8 {[%clk 0:02:57.9]} 21.
Ke2 {[%clk 0:01:44.2]} 21... Be6 {[%clk 0:02:56.6]} 22. Rd1 {[%clk 0:01:40]}
22... Rdc8 {[%clk 0:02:52]} 23. Rd2 {[%clk 0:01:38.8]} 23... a5 {[%clk
0:02:51.4]} 24. Bd6 {[%clk 0:01:39.5]} 24... Bc4+ {[%clk 0:02:47.5]} 25. Ke1
{[%clk 0:01:38.1]} 25... Bxa2 {[%clk 0:02:49.2]} 26. Bxe5 {[%clk 0:01:35.4]}
26... a4 {[%clk 0:02:48.1]} 27. Bd6 {[%clk 0:01:31.5]} 27... Be6 {[%clk
0:02:40.3]} 28. Ba3 {[%clk 0:01:12.9]} 28... h6 {[%clk 0:02:30.4]} 29. Rb7
{[%clk 0:01:09.9]} 29... Bc4 {[%clk 0:02:09.8]} 30. Kd1 {[%clk 0:01:00.8]} 30...
Re8 {[%clk 0:02:10.1]} 31. Kc1 {[%clk 0:00:59.2]} 31... Rad8 {[%clk 0:02:08.6]}
32. Re7 {[%clk 0:00:55.9]} 32... Kh7 {[%clk 0:02:00]} 33. c3 {[%clk 0:00:40.7]}
33... Rxd2 {[%clk 0:01:57.1]} 34. Kxd2 {[%clk 0:00:39.4]} 34... Rd8+ {[%clk
0:01:58.4]} 35. Kc1 {[%clk 0:00:35.6]} 35... Bb3 {[%clk 0:01:57.5]} 36. Re2
{[%clk 0:00:28.6]} 36... Rd1+ {[%clk 0:01:57.2]} 37. Kb2 {[%clk 0:00:29.6]}
37... Rh1 {[%clk 0:01:57.2]} 38. g3 {[%clk 0:00:29]} 38... g5 {[%clk 0:01:53.6]}
39. Bb4 {[%clk 0:00:28]} 39... h5 {[%clk 0:01:53.3]} 40. Rf2 {[%clk 0:00:27.8]}
40... h4 {[%clk 0:01:52.9]} 41. f4 {[%clk 0:00:26.5]} 41... hxg3 {[%clk
0:01:52.1]} 42. hxg3 {[%clk 0:00:27.1]} 42... g4 {[%clk 0:01:53.5]} 43. f5
{[%clk 0:00:23.9]} 43... Rg1 {[%clk 0:01:51.9]} 44. Bd6 {[%clk 0:00:24.8]} 44...
f6 {[%clk 0:01:50.6]} 45. Rh2+ {[%clk 0:00:21.3]} 45... Kg7 {[%clk 0:01:51.5]}
46. Re2 {[%clk 0:00:22.6]} 46... Bc4 {[%clk 0:01:50.3]} 47. Re7+ {[%clk
0:00:17.8]} 47... Kg8 {[%clk 0:01:51.7]} 48. Re8+ {[%clk 0:00:18.3]} 48... Kf7
{[%clk 0:01:53]} 49. Re7+ {[%clk 0:00:19.3]} 49... Kg8 {[%clk 0:01:53.5]} 50.
Re8+ {[%clk 0:00:20.4]} 50... Kg7 {[%clk 0:01:55.2]} 51. Re7+ {[%clk 0:00:21.4]}
51... Bf7 {[%clk 0:01:51.6]} 52. Re2 {[%clk 0:00:21.7]} 52... Rf1 {[%clk
0:01:47.1]} 53. Bf4 {[%clk 0:00:21.2]} 53... Bc4 {[%clk 0:01:42.9]} 54. Re7+
{[%clk 0:00:22]} 54... Kg8 {[%clk 0:01:44.1]} 55. Re8+ {[%clk 0:00:22.1]} 55...
Kf7 {[%clk 0:01:44.9]} 56. Rd8 {[%clk 0:00:20.7]} 56... Rxf4 {[%clk 0:01:37]}
57. gxf4 {[%clk 0:00:21.2]} 57... g3 {[%clk 0:01:38.5]} 58. Rd7+ {[%clk
0:00:21.8]} 58... Kf8 {[%clk 0:01:39.2]} 59. Rd8+ {[%clk 0:00:16.9]} 59... Ke7
{[%clk 0:01:39.9]} 60. Rd2 {[%clk 0:00:17.6]} 60... Bf1 {[%clk 0:01:40.8]} 61.
Ka3 {[%clk 0:00:04.7]} 61... g2 {[%clk 0:01:41]} 62. Rxg2 {[%clk 0:00:05.2]}
62... Bxg2 {[%clk 0:01:42.9]} 0-1

[Event "*** Titled Tuesday 3|2 Blitz"]
[Site "Chess.com"]
[Date "2016.07.05"]
[Round "1"]
[White "macko06"]
[Black "SmoothAsAHedgehog"]
[Result "0-1"]
[WhiteElo "2211"]
[BlackElo "2519"]
[TimeControl "180+2"]
[EndTime "11:09:29 PDT"]
[Termination "SmoothAsAHedgehog won by resignation"]

1. d4 {[%clk 0:03:01.9]} 1... Nf6 {[%clk 0:02:59.3]} 2. Nf3 {[%clk 0:03:00]}
2... e6 {[%clk 0:02:59.9]} 3. c4 {[%clk 0:03:00.7]} 3... Bb4+ {[%clk 0:02:58.1]}
4. Bd2 {[%clk 0:03:01.6]} 4... Qe7 {[%clk 0:02:57.9]} 5. g3 {[%clk 0:03:02.1]}
5... Nc6 {[%clk 0:02:56.1]} 6. Bg2 {[%clk 0:03:01.7]} 6... Bxd2+ {[%clk
0:02:56.6]} 7. Qxd2 {[%clk 0:03:03.1]} 7... Ne4 {[%clk 0:02:56.7]} 8. Qc2 {[%clk
0:02:53.2]} 8... Qb4+ {[%clk 0:02:54.3]} 9. Kf1 {[%clk 0:02:47.1]} 9... d5
{[%clk 0:02:50.3]} 10. cxd5 {[%clk 0:02:42.3]} 10... exd5 {[%clk 0:02:50.5]} 11.
a3 {[%clk 0:02:37.4]} 11... Qd6 {[%clk 0:02:30.7]} 12. Nc3 {[%clk 0:02:35.3]}
12... Bf5 {[%clk 0:02:24.4]} 13. Qc1 {[%clk 0:02:27.2]} 13... O-O {[%clk
0:02:20.3]} 14. e3 {[%clk 0:02:19.7]} 14... Rfe8 {[%clk 0:02:10.6]} 15. Nxe4
{[%clk 0:02:15.9]} 15... Bxe4 {[%clk 0:02:09.9]} 16. Nd2 {[%clk 0:02:15.7]}
16... Bd3+ {[%clk 0:02:01.8]} 17. Kg1 {[%clk 0:02:14.7]} 17... h5 {[%clk
0:01:51.7]} 18. h4 {[%clk 0:02:11.6]} 18... Nb8 {[%clk 0:01:43.7]} 19. Qc3
{[%clk 0:02:10.5]} 19... Bg6 {[%clk 0:01:39]} 20. Rc1 {[%clk 0:02:05.6]} 20...
c6 {[%clk 0:01:39.4]} 21. Bf3 {[%clk 0:01:57.9]} 21... Nd7 {[%clk 0:01:37.7]}
22. Kg2 {[%clk 0:01:57.1]} 22... a5 {[%clk 0:01:16.8]} 23. b4 {[%clk 0:01:45.4]}
23... axb4 {[%clk 0:01:17.1]} 24. axb4 {[%clk 0:01:47.3]} 24... Nf6 {[%clk
0:01:17.4]} 25. Ra1 {[%clk 0:01:44.7]} 25... Bf5 {[%clk 0:01:17.1]} 26. Qc5
{[%clk 0:01:38.2]} 26... Qd7 {[%clk 0:01:14.7]} 27. Qc3 {[%clk 0:01:32.5]} 27...
Bg4 {[%clk 0:01:14.2]} 28. Rxa8 {[%clk 0:01:25.2]} 28... Rxa8 {[%clk 0:01:12.3]}
29. Ra1 {[%clk 0:01:25.5]} 29... Re8 {[%clk 0:01:12.3]} 30. Bxg4 {[%clk
0:01:10.1]} 30... Nxg4 {[%clk 0:01:12.8]} 31. Nf3 {[%clk 0:01:01.6]} 31... g6
{[%clk 0:01:04.3]} 32. Rb1 {[%clk 0:00:57.9]} 32... Re6 {[%clk 0:00:59.5]} 33.
Qd3 {[%clk 0:00:50.8]} 33... Rf6 {[%clk 0:00:59.2]} 34. b5 {[%clk 0:00:46.4]}
34... Qd8 {[%clk 0:00:56.5]} 35. Qe2 {[%clk 0:00:40.2]} 35... Qe8 {[%clk
0:00:50.8]} 36. Qd3 {[%clk 0:00:37.3]} 36... Qe6 {[%clk 0:00:49.2]} 37. Qe2
{[%clk 0:00:31.1]} 37... Qe4 {[%clk 0:00:49]} 38. Rb3 {[%clk 0:00:26.7]} 38...
c5 {[%clk 0:00:46.5]} 39. Ra3 {[%clk 0:00:15]} 39... cxd4 {[%clk 0:00:43.1]} 40.
Qd1 {[%clk 0:00:08.9]} 40... dxe3 {[%clk 0:00:42.5]} 41. Ra8+ {[%clk 0:00:04]}
41... Kg7 {[%clk 0:00:40.4]} 42. Qe2 {[%clk 0:00:05.5]} 42... Ne5 {[%clk
0:00:37.2]} 43. Re8 {[%clk 0:00:04.1]} 43... Qxf3+ {[%clk 0:00:36.7]} 44. Qxf3
{[%clk 0:00:04.8]} 44... Rxf3 {[%clk 0:00:27.1]} 45. Rxe5 {[%clk 0:00:04.8]}
45... Rxf2+ {[%clk 0:00:28]} 46. Kg1 {[%clk 0:00:05.7]} 46... d4 {[%clk
0:00:29.9]} 47. Re4 {[%clk 0:00:06.6]} 47... Rd2 {[%clk 0:00:30.5]} 48. Re7
{[%clk 0:00:07.8]} 48... Kf6 {[%clk 0:00:30.7]} 49. Re8 {[%clk 0:00:08.4]} 49...
e2 {[%clk 0:00:31.1]} 50. Kf2 {[%clk 0:00:08.9]} 50... d3 {[%clk 0:00:32.6]} 51.
Re3 {[%clk 0:00:08.9]} 51... Rd1 {[%clk 0:00:33]} 52. b6 {[%clk 0:00:10]} 52...
Rf1+ {[%clk 0:00:32]} 53. Kg2 {[%clk 0:00:11.6]} 53... e1=Q {[%clk 0:00:30.1]}
0-1

[Event "*** Titled Tuesday 3|2 Blitz"]
[Site "Chess.com"]
[Date "2016.07.05"]
[Round "1"]
[White "StoreySniper"]
[Black "fireheart92"]
[Result "0-1"]
[WhiteElo "2356"]
[BlackElo "1391"]
[TimeControl "180+2"]
[EndTime "11:09:29 PDT"]
[Termination "fireheart92 won on time"]

1. e4 {[%clk 0:02:57.9]} 1... e5 {[%clk 0:03:00]} 2. Nf3 {[%clk 0:02:58.2]} 2...
Nc6 {[%clk 0:03:01.2]} 3. Bb5 {[%clk 0:02:58.8]} 3... a6 {[%clk 0:03:02.5]} 4.
Ba4 {[%clk 0:02:59.7]} 4... Nf6 {[%clk 0:03:03]} 5. O-O {[%clk 0:03:00.6]} 5...
Bc5 {[%clk 0:03:03.6]} 6. d3 {[%clk 0:03:01]} 6... d6 {[%clk 0:02:59.8]} 7. h3
{[%clk 0:03:01.2]} 7... O-O {[%clk 0:03:00.1]} 8. Nc3 {[%clk 0:03:01.3]} 8...
Ne7 {[%clk 0:02:55.8]} 9. Be3 {[%clk 0:02:58.3]} 9... Bxe3 {[%clk 0:02:52.2]}
10. fxe3 {[%clk 0:02:58.9]} 10... Ng6 {[%clk 0:02:53.3]} 11. Bb3 {[%clk
0:02:53.8]} 11... Be6 {[%clk 0:02:51.4]} 12. Bxe6 {[%clk 0:02:49.7]} 12... fxe6
{[%clk 0:02:52.5]} 13. d4 {[%clk 0:02:46.6]} 13... exd4 {[%clk 0:02:53.4]} 14.
exd4 {[%clk 0:02:47.3]} 14... e5 {[%clk 0:02:54.5]} 15. dxe5 {[%clk 0:02:46.8]}
15... Nxe5 {[%clk 0:02:55.5]} 16. Nxe5 {[%clk 0:02:47.5]} 16... dxe5 {[%clk
0:02:57.1]} 17. Qxd8 {[%clk 0:02:44.3]} 17... Raxd8 {[%clk 0:02:58.6]} 18. Rad1
{[%clk 0:02:45.4]} 18... Rd4 {[%clk 0:02:59.4]} 19. Rd3 {[%clk 0:02:40.8]} 19...
Rxd3 {[%clk 0:02:50.5]} 20. cxd3 {[%clk 0:02:41]} 20... Rd8 {[%clk 0:02:52]} 21.
Rf3 {[%clk 0:02:38.4]} 21... c6 {[%clk 0:02:49.9]} 22. Kf2 {[%clk 0:02:37.8]}
22... Kf7 {[%clk 0:02:50.9]} 23. Ke3 {[%clk 0:02:34.9]} 23... Ke6 {[%clk
0:02:50.9]} 24. b4 {[%clk 0:02:26.9]} 24... g6 {[%clk 0:02:46.2]} 25. Na4 {[%clk
0:02:24.4]} 25... Nd7 {[%clk 0:02:46.6]} 26. g4 {[%clk 0:02:12.2]} 26... b5
{[%clk 0:02:47.1]} 27. Nc5+ {[%clk 0:01:55.1]} 27... Nxc5 {[%clk 0:02:47.4]} 28.
bxc5 {[%clk 0:01:57]} 28... a5 {[%clk 0:02:48.1]} 29. g5 {[%clk 0:01:57.5]}
29... b4 {[%clk 0:02:43.2]} 30. Rf6+ {[%clk 0:01:58]} 30... Kd7 {[%clk 0:02:37]}
31. d4 {[%clk 0:01:43.1]} 31... exd4+ {[%clk 0:02:22.7]} 32. Kxd4 {[%clk
0:01:45]} 32... Kc7+ {[%clk 0:02:13]} 33. Kc4 {[%clk 0:01:43.7]} 33... Rd2
{[%clk 0:02:11.6]} 34. Rf7+ {[%clk 0:01:34.5]} 34... Kb8 {[%clk 0:02:04.1]} 35.
Kb3 {[%clk 0:01:25.7]} 35... Rd3+ {[%clk 0:02:00.3]} 36. Kc4 {[%clk 0:01:19.2]}
36... Rxh3 {[%clk 0:01:44.5]} 37. Rf6 {[%clk 0:00:58.2]} 37... Kc7 {[%clk
0:01:39.5]} 38. Rf7+ {[%clk 0:00:58.8]} 38... Kd8 {[%clk 0:01:38.6]} 39. Rf6
{[%clk 0:00:50.9]} 39... Kd7 {[%clk 0:01:35]} 40. Rf7+ {[%clk 0:00:49.5]} 40...
Ke6 {[%clk 0:01:26.7]} 41. Rc7 {[%clk 0:00:47.9]} 41... Rc3+ {[%clk 0:01:02.1]}
42. Kd4 {[%clk 0:00:48.3]} 42... Rc2 {[%clk 0:00:58.4]} 43. Rxc6+ {[%clk
0:00:49.3]} 43... Kd7 {[%clk 0:00:59.4]} 44. Rd6+ {[%clk 0:00:39.5]} 44... Kc7
{[%clk 0:00:55.6]} 45. Rf6 {[%clk 0:00:30.8]} 45... Rxa2 {[%clk 0:00:55.1]} 46.
Kc4 {[%clk 0:00:32]} 46... Re2 {[%clk 0:00:40.9]} 47. Kb5 {[%clk 0:00:31.6]}
47... b3 {[%clk 0:00:40.2]} 48. Rf7+ {[%clk 0:00:30.5]} 48... Kd8 {[%clk
0:00:35.6]} 49. Kc6 {[%clk 0:00:15.8]} 49... b2 {[%clk 0:00:31.7]} 50. Rf8+
{[%clk 0:00:15.9]} 50... Ke7 {[%clk 0:00:32.1]} 51. Rb8 {[%clk 0:00:17.5]} 51...
a4 {[%clk 0:00:32.7]} 52. Rb7+ {[%clk 0:00:08.7]} 52... Ke6 {[%clk 0:00:32.2]}
0-1